bitfinex-derivatives/quotes_SOLF0:USTF0_20250609
["timestamp","ask_amount","ask_price","bid_price","bid_amount"]
[1749468726817,0.04374159,156.04,156.0,0.04231338]
[1749468727117,6.44934159,156.04,156.0,0.04231338]
[1749468727521,6.44934159,156.04,156.02,6.406]
[1749468728118,0.04374159,156.04,156.03,6.4057]
[1749468729113,0.04374159,156.04,156.02,39.1659]
[1749468729516,6.44924159,156.04,156.02,39.1659]
[1749468730927,0.04374159,156.04,156.03,6.4057]
[1749468732526,6.44904159,156.04,156.02,39.166]
[1749468732725,0.04374159,156.04,156.02,32.76]
[1749468733127,6.44944159,156.04,156.02,32.76]
[1749468733830,6.44944159,156.04,156.02,39.1661]
[1749468734929,6.4057,156.03,156.02,32.76]
[1749468736728,0.04374159,156.04,156.02,32.76]
[1749468737321,6.44924159,156.04,156.02,32.76]
[1749468738634,6.4057,156.03,156.02,32.76]
[1749468744535,6.4061,156.02,156.01,13.51]
[1749468746530,6.4061,156.02,156.01,5.63]
[1749468748633,9.63926197,156.02,156.01,5.63]
[1749468748834,6.4066,156.01,156.0,13.81231338]
[1749468749035,3.23316197,156.02,155.99,6.27]
[1749468749431,9.64016197,156.0,155.99,6.27]
[1749468750135,6.4074,155.99,155.98,0.04619933]
[1749468750939,11.58499285,155.99,155.98,0.04619933]
[1749468752241,6.4074,155.99,155.98,0.04619933]
[1749468753442,11.57649803,155.99,155.98,0.04619933]
[1749468755441,5.16909803,155.99,155.98,0.04619933]
[1749468755640,0.04333436,156.01,155.98,0.04619933]
[1749468755840,5.16792187,156.0,155.98,0.04619933]
[1749468756045,0.04333436,156.01,155.99,6.4074]
[1749468756535,6.44993436,156.01,155.99,6.4074]
[1749468757639,0.04333436,156.01,156.0,39.147]
[1749468757841,5.16161593,156.04,156.0,32.74]
[1749468758040,6.4054,156.04,156.01,6.4063]
[1749468758737,5.16187313,156.03,156.01,6.4063]
[1749468758934,6.4057,156.03,156.01,6.45137405]
[1749468759341,11.56845207,156.02,156.01,0.04507405]
[1749468759945,0.0476073,156.04,156.01,0.04507405]
[1749468760342,6.4061,156.03,156.01,0.04507405]
[1749468760543,0.0476073,156.04,156.01,0.04507405]
[1749468762045,6.4533073,156.04,156.01,6.45137405]
[1749468763947,6.4058,156.03,156.01,6.45137405]
[1749468764649,6.4061,156.02,156.01,0.04507405]
[1749468765443,10.63990924,156.02,156.01,0.04507405]
[1749468765742,6.4061,156.02,156.01,0.04507405]
[1749468765945,10.63990802,156.02,156.01,0.04507405]
[1749468766139,12.38555243,156.02,156.01,0.04507405]
[1749468766344,16.61936858,156.02,156.01,0.04507405]
[1749468767546,16.61949228,156.02,156.01,0.04507405]
[1749468767746,12.38555243,156.02,156.01,0.04507405]
[1749468767941,16.61948106,156.02,156.01,0.04507405]
[1749468769247,4.22174395,156.02,155.95,32.7]
[1749468769552,3.23316197,156.0,155.95,32.7]
[1749468769850,6.4085,155.97,155.95,32.7]
[1749468770448,6.4085,155.97,155.95,39.109]
[1749468771752,6.45212809,155.98,155.95,39.109]
[1749468772151,0.04422809,155.98,155.95,39.109]
[1749468772452,0.04422809,155.98,155.95,32.7]
[1749468772849,5.18587442,155.98,155.95,32.7]
[1749468773154,0.04422809,155.98,155.95,32.7]
[1749468773354,0.04422809,155.98,155.96,6.4083]
[1749468774553,0.04422809,155.98,155.97,6.4082]
[1749468775054,0.04422809,155.98,155.96,6.4084]
[1749468776859,0.04422809,155.98,155.95,32.7]
[1749468776860,6.45202809,155.98,155.95,39.1089]
[1749468778158,6.45202809,155.98,155.96,6.4086]
[1749468778658,6.4083,155.97,155.95,39.1089]
[1749468779149,6.45222809,155.98,155.95,39.1089]
[1749468779953,0.04422809,155.98,155.96,6.4085]
[1749468780159,5.18338813,155.98,155.96,6.4085]
[1749468780357,0.04422809,155.98,155.96,6.4085]
[1749468780559,0.04422809,155.98,155.97,6.4082]
[1749468781956,5.14096821,156.0,155.99,6.4074]
[1749468782160,5.14098054,156.03,155.99,6.4074]
[1749468782461,5.14098054,156.02,155.99,6.4074]
[1749468782759,5.14098054,156.01,155.99,6.4074]
[1749468782959,0.04140605,156.02,155.99,6.4074]
[1749468783254,5.14125419,156.01,155.99,6.4074]
[1749468783460,0.04140605,156.02,156.0,6.407]
[1749468783659,0.04140605,156.02,155.99,32.7]
[1749468783862,5.14166291,156.01,156.0,6.4067]
[1749468784065,0.04140605,156.02,156.0,6.4067]
[1749468784563,5.14215564,156.01,156.0,6.4067]
[1749468784861,6.44780605,156.02,156.0,6.4067]
[1749468785961,0.04140605,156.02,156.01,6.4066]
[1749468787268,0.04140605,156.02,156.0,6.4068]
[1749468789467,0.04140605,156.02,156.01,6.4066]
[1749468789668,5.19491657,156.02,155.99,32.7]
[1749468789870,6.44760605,156.02,155.99,32.7]
[1749468790166,0.04140605,156.02,155.99,32.7]
[1749468791670,0.04140605,156.02,156.01,6.4066]
[1749468792064,5.15838192,156.05,156.0,3.23316197]
[1749468792264,5.1574344,156.08,156.06,6.4043]
[1749468792468,8.21666207,156.12,156.06,3.23316197]
[1749468792667,15.78792837,156.11,156.08,6.4033]
[1749468792870,5.15454037,156.1,156.08,3.23316197]
[1749468793073,0.04211987,156.11,156.08,3.23316197]
[1749468793373,0.04211987,156.11,156.1,6.4029]
[1749468794866,0.04211987,156.11,156.1,9.63606197]
[1749468795469,5.12513453,156.16,156.13,6.4014]
[1749468795666,5.12513453,156.17,156.13,6.4014]
[1749468795862,5.12513453,156.19,156.13,6.4014]
[1749468796067,6.4008,156.15,156.12,9.63506197]
[1749468796461,6.44456146,156.15,156.12,9.68233408]
[1749468797468,6.44456146,156.15,156.13,6.4016]
[1749468797668,0.04376146,156.15,156.13,6.4016]
[1749468798473,6.44466146,156.15,156.13,6.4016]
[1749468799376,0.04376146,156.15,156.13,6.4016]
[1749468799578,0.04376146,156.15,156.12,9.68233408]
[1749468800874,6.44476146,156.15,156.12,9.68233408]
[1749468801077,6.44476146,156.15,156.12,6.44917211]
[1749468801778,6.4012,156.14,156.12,0.04727211]
[1749468801974,0.04376146,156.15,156.12,0.04727211]
[1749468802279,0.04376146,156.15,156.14,6.4012]
[1749468803275,0.04376146,156.15,156.14,9.63436197]
[1749468803473,4.2309,156.22,156.14,3.23316197]
[1749468803782,4.2309,156.22,156.16,3.23316197]
[1749468803983,6.3992,156.19,156.16,9.63346197]
[1749468804275,4.2309,156.22,156.16,9.63346197]
[1749468804476,4.2309,156.22,156.17,6.44658644]
[1749468804477,0.04669265,156.21,156.17,6.44658644]
[1749468804675,0.04669265,156.21,156.17,32.68678644]
[1749468805274,5.98376207,156.33,156.17,35.51678644]
[1749468805479,5.98376207,156.33,156.22,3.23316197]
[1749468805480,8.65854259,156.32,156.22,3.23316197]
[1749468805674,3.23316197,156.3,156.22,35.87316197]
[1749468806183,0.04750908,156.28,156.24,0.04396282]
[1749468806885,6.3967,156.26,156.24,0.04396282]
[1749468807078,0.04750908,156.28,156.24,0.04396282]
[1749468807382,6.3966,156.26,156.24,0.04396282]
[1749468807577,0.04750908,156.28,156.24,0.04396282]
[1749468807975,6.3967,156.25,156.24,0.04396282]
[1749468809983,6.3964,156.26,156.24,0.04396282]
[1749468811782,6.3967,156.25,156.24,0.04396282]
[1749468813581,9.62986197,156.25,156.24,0.04396282]
[1749468814182,6.3967,156.25,156.24,0.04396282]
[1749468820490,4.4411,156.26,156.24,0.04396282]
[1749468821494,6.3967,156.25,156.24,0.04396282]
[1749468822991,6.3971,156.24,156.23,5.75]
[1749468823301,3.23316197,156.24,156.19,32.62]
[1749468823696,3.23316197,156.24,156.18,8.1]
[1749468824098,0.04915974,156.23,156.19,0.04119268]
[1749468824898,6.3982,156.22,156.19,0.04119268]
[1749468825698,6.3984,156.21,156.19,0.04119268]
[1749468827199,6.3988,156.2,156.19,0.04119268]
[1749468831198,9.63196197,156.2,156.19,0.04119268]
[1749468831397,45.75397061,156.2,156.14,10.95]
[1749468831704,3.23316197,156.18,156.14,10.95]
[1749468831899,6.4007,156.16,156.14,10.95]
[1749468832295,0.04578746,156.17,156.14,7.73]
[1749468832497,6.4005,156.16,156.14,7.73]
[1749468833097,6.4004,156.16,156.14,7.73]
[1749468834607,6.4008,156.15,156.14,7.73]
[1749468834805,6.4008,156.15,156.08,6.4023]
[1749468834806,7.55363497,156.15,156.08,33.08]
[1749468835001,9.46208925,156.14,156.05,368.62]
[1749468835206,3.23316197,156.12,156.05,401.7]
[1749468835407,8.37477822,156.12,156.05,401.7]
[1749468835609,5.14161625,156.11,156.06,3.23]
[1749468835812,0.04695492,156.1,156.07,0.04851484]
[1749468836217,0.04695492,156.1,156.07,6.45251484]
[1749468836410,0.04695492,156.1,156.07,0.04851484]
[1749468836811,6.44995492,156.1,156.07,0.04851484]
[1749468837207,0.04695492,156.1,156.07,0.04851484]
[1749468837407,0.04695492,156.1,156.09,9.63646197]
[1749468837612,0.04695492,156.1,156.09,42.73646197]
[1749468838707,3.23316197,156.17,156.09,36.33316197]
[1749468838708,9.21692404,156.17,156.09,36.33316197]
[1749468838905,5.13602138,156.16,156.11,3.23316197]
[1749468839109,5.13602138,156.17,156.11,3.23316197]
[1749468839311,5.13602138,156.16,156.11,3.23316197]
[1749468839510,5.13602138,156.18,156.13,3.23316197]
[1749468839816,0.04487767,156.17,156.16,6.4004]
[1749468840013,0.04414373,156.18,156.15,3.28176048]
[1749468841008,0.04414373,156.18,156.17,6.4]
[1749468841205,0.04414373,156.18,156.17,39.48]
[1749468844211,0.04414373,156.18,156.15,0.04859851]
[1749468844606,5.17889409,156.18,156.15,0.04859851]
[1749468844810,0.04414373,156.18,156.15,6.44929851]
[1749468845011,5.17889409,156.18,156.15,6.44929851]
[1749468845213,3.2773057,156.18,156.15,0.04859851]
[1749468845413,5.13475036,156.17,156.15,0.04859851]
[1749468846019,0.04414373,156.18,156.15,0.04859851]
[1749468846913,0.04414373,156.18,156.16,6.4001]
[1749468847718,0.04414373,156.18,156.15,0.04859851]
[1749468848113,6.44374373,156.18,156.15,6.44919851]
[1749468848516,6.44374373,156.18,156.15,0.04859851]
[1749468848720,0.04414373,156.18,156.16,6.4002]
[1749468849416,6.44374373,156.18,156.15,6.44919851]
[1749468849721,6.44374373,156.18,156.15,0.04859851]
[1749468850621,6.4,156.17,156.15,6.44929851]
[1749468850815,0.04414373,156.18,156.15,6.44929851]
[1749468851517,6.44404373,156.18,156.15,6.44929851]
[1749468852021,0.04414373,156.18,156.15,6.44929851]
[1749468852209,6.44384373,156.18,156.15,6.44929851]
[1749468852715,6.4001,156.17,156.15,0.04859851]
[1749468853921,6.44404373,156.18,156.15,6.44919851]
[1749468854322,6.4003,156.17,156.15,0.04859851]
[1749468854524,11.5489084,156.17,156.15,0.04859851]
[1749468854820,6.4004,156.16,156.15,0.04859851]
[1749468855020,0.04414373,156.18,156.15,0.04859851]
[1749468855021,5.14921186,156.17,156.15,0.04859851]
[1749468855322,5.19335559,156.18,156.15,0.04859851]
[1749468855723,0.04414373,156.18,156.15,0.04859851]
[1749468855923,5.19335559,156.18,156.15,0.04859851]
[1749468856224,6.4004,156.16,156.15,0.04859851]
[1749468856524,6.4014,156.14,156.11,3.23]
[1749468856719,6.4014,156.14,156.11,36.81]
[1749468856921,6.4014,156.14,156.11,43.2121]
[1749468857225,6.4021,156.12,156.11,3.23]
[1749468857419,11.55516425,156.12,156.11,3.23]
[1749468858415,6.4025,156.11,156.1,0.04741364]
[1749468858621,3.23316197,156.11,156.05,33.58]
[1749468859022,8.38622622,156.11,156.05,33.58]
[1749468859221,5.15306425,156.1,156.06,6.4042]
[1749468859525,3.23316197,156.09,156.05,33.58]
[1749468859717,8.42841172,156.09,156.05,33.62805827]
[1749468859922,0.0421855,156.09,156.05,33.62805827]
[1749468861025,3.23316197,156.08,156.05,33.62805827]
[1749468861217,3.23316197,156.08,156.05,0.04805827]
[1749468861423,0.0421855,156.09,156.05,0.04805827]
[1749468861424,3.23316197,156.06,156.05,0.04805827]
[1749468862327,9.63766197,156.06,156.05,0.04805827]
[1749468866333,9.63766197,156.06,156.05,5.827e-05]
[1749468866627,6.4053,156.04,155.99,404.6439]
[1749468866828,9.63846197,156.04,155.99,404.6439]
[1749468867632,9.63846197,156.04,156.02,0.04929146]
[1749468872834,3.23316197,156.04,155.99,33.6]
[1749468873132,0.04422699,156.05,155.99,33.6]
[1749468873338,0.04422699,156.05,156.02,6.4059]
[1749468873841,6.44932699,156.05,156.02,0.04197857]
[1749468874747,6.4054,156.04,156.02,0.04197857]
[1749468875135,6.44912699,156.05,156.02,0.04197857]
[1749468875439,0.04422699,156.05,156.02,0.04197857]
[1749468876441,6.4057,156.03,156.02,0.04197857]
[1749468885545,9.63886197,156.03,156.02,0.04197857]
[1749468885739,6.4074,155.99,155.98,7.58]
[1749468886242,3.23316197,156.03,155.96,35.7684]
[1749468886447,3.23316197,156.01,155.96,33.62]
[1749468886842,6.4076,155.99,155.96,40.0286]
[1749468887542,6.4079,155.98,155.96,33.62]
[1749468888237,0.04815416,156.0,155.96,40.0285]
[1749468888238,6.4076,155.99,155.96,40.0285]
[1749468889249,6.4076,155.99,155.97,6.4082]
[1749468889649,6.4076,155.99,155.96,33.62]
[1749468889850,6.4076,155.99,155.96,40.0284]
[1749468891548,6.4078,155.98,155.96,40.0284]
[1749468891744,6.4078,155.98,155.96,33.62]
[1749468892145,6.4075,155.99,155.96,40.0286]
[1749468892349,0.04815416,156.0,155.96,33.62]
[1749468892751,0.04815416,156.0,155.97,6.408]
[1749468893252,6.45545416,156.0,155.97,6.408]
[1749468893752,0.04815416,156.0,155.98,6.4077]
[1749468893946,0.04815416,156.0,155.96,33.62]
[1749468894354,6.45525416,156.0,155.97,6.408]
[1749468895346,6.45525416,156.0,155.98,6.4078]
[1749468895652,0.04815416,156.0,155.98,6.4078]
[1749468896349,0.04815416,156.0,155.99,6.4074]
[1749468897059,33.62,156.06,156.01,6.4065]
[1749468897249,33.62,156.06,155.98,3.23316197]
[1749468897455,33.62,156.06,155.99,2.1805]
[1749468897854,7.41111148,156.05,155.99,2.1805]
[1749468898061,6.4068,156.01,156.0,0.04281554]
[1749468899553,0.04070209,156.04,156.0,0.04281554]
[1749468899952,4.22345771,156.04,156.0,0.04281554]
[1749468900157,0.04070209,156.04,156.0,33.26281554]
[1749468900357,6.406,156.03,156.01,6.4063]
[1749468900555,0.04070209,156.04,156.0,36.49597751]
[1749468900756,0.04070209,156.04,156.02,3.23316197]
[1749468900957,6.4043,156.07,156.04,6.4052]
[1749468901153,9.21692404,156.11,156.04,36.45316197]
[1749468901462,10.58554903,156.1,156.07,6.4037]
[1749468901662,5.98376207,156.11,156.04,36.45316197]
[1749468901961,6.4041,156.08,156.06,0.04121488]
[1749468903159,6.4041,156.07,156.06,0.04121488]
[1749468905366,6.4039,156.08,156.06,0.04121488]
[1749468905568,0.04157224,156.09,156.06,3.27437685]
[1749468905864,0.04157224,156.09,156.07,6.4041]
[1749468906968,5.15186174,156.09,156.07,6.4041]
[1749468907475,0.04157224,156.09,156.08,6.4037]
[1749468907767,5.10845321,156.12,156.07,3.23316197]
[1749468908070,5.10845321,156.12,156.09,3.23316197]
[1749468908368,5.10845321,156.14,156.09,3.23316197]
[1749468908567,5.98376207,156.16,156.09,9.63616197]
[1749468908568,5.10845321,156.13,156.09,9.63616197]
[1749468908763,6.402,156.13,156.09,9.68367448]
[1749468908969,0.04252757,156.13,156.09,3.28067448]
[1749468909165,5.15098078,156.13,156.09,9.68377448]
[1749468909366,0.04252757,156.13,156.09,9.68377448]
[1749468909769,6.4026,156.11,156.09,3.28067448]
[1749468910070,0.04252757,156.13,156.09,0.04751251]
[1749468910266,6.4029,156.1,156.09,0.04751251]
[1749468910773,5.110391,156.12,156.09,0.04751251]
[1749468910968,6.4026,156.11,156.09,0.04751251]
[1749468911670,0.04252757,156.13,156.09,0.04751251]
[1749468912771,0.04252757,156.13,156.1,6.4026]
[1749468912972,0.04252757,156.13,156.1,3.23316197]
[1749468913370,5.12476904,156.17,156.12,3.23316197]
[1749468913575,33.2,156.21,156.12,36.43316197]
[1749468913770,6.4,156.17,156.15,6.4006]
[1749468914871,6.44890756,156.18,156.16,6.4003]
[1749468915070,0.04910756,156.18,156.14,3.27935341]
[1749468915376,0.04910756,156.18,156.15,2.1382]
[1749468915568,0.04910756,156.18,156.16,39.6001]
[1749468916069,0.04910756,156.18,156.17,6.4]
[1749468916671,0.04910756,156.18,156.16,39.6002]
[1749468917175,0.04910756,156.18,156.17,6.4]
[1749468917376,0.04910756,156.18,156.16,33.2]
[1749468917872,6.44890756,156.18,156.16,33.2]
[1749468918074,0.04910756,156.18,156.16,33.2]
[1749468918678,6.44870756,156.18,156.16,33.2]
[1749468919079,0.04910756,156.18,156.16,33.2]
[1749468919278,6.44870756,156.18,156.16,33.2]
[1749468919480,0.04910756,156.18,156.16,33.2]
[1749468920879,6.44910756,156.18,156.16,33.2]
[1749468921176,0.04910756,156.18,156.16,33.2]
[1749468921581,0.04910756,156.18,156.17,6.4]
[1749468922378,33.2,156.24,156.19,6.3992]
[1749468922572,372.17316197,156.26,156.19,6.3992]
[1749468922573,3.23316197,156.26,156.19,6.3992]
[1749468922782,8.34787802,156.26,156.19,6.3992]
[1749468923085,6.3982,156.22,156.19,6.3992]
[1749468923486,6.43936808,156.22,156.19,6.44266293]
[1749468924683,6.3984,156.21,156.19,0.04346293]
[1749468924880,0.04116808,156.22,156.19,0.04346293]
[1749468925285,6.3988,156.2,156.19,0.04346293]
[1749468926985,0.04116808,156.22,156.19,3.2766249]
[1749468927184,32.86,156.3,156.21,3.23316197]
[1749468927384,8.34328965,156.29,156.2,34.9511]
[1749468927590,3.23316197,156.27,156.2,34.9511]
[1749468927885,3.23316197,156.27,156.2,41.3496]
[1749468928087,6.43976516,156.25,156.22,0.04801433]
[1749468928986,6.3972,156.24,156.22,0.04801433]
[1749468929287,36.09316197,156.24,156.16,8.08]
[1749468929490,3.23316197,156.21,156.16,8.08]
[1749468929688,7.58916197,156.23,156.16,8.08]
[1749468929891,7.58916197,156.23,156.16,14.4801]
[1749468930288,0.04406292,156.21,156.18,0.04702233]
[1749468930490,6.3991,156.2,156.18,0.04702233]
[1749468930889,0.04406292,156.21,156.18,0.04702233]
[1749468931794,6.3992,156.19,156.18,0.04702233]
[1749468933092,0.04406292,156.21,156.18,0.04702233]
[1749468933491,6.3989,156.2,156.18,0.04702233]
[1749468933693,0.04406292,156.21,156.18,3.2801843]
[1749468933988,0.04406292,156.21,156.2,6.3988]
[1749468934193,0.04406292,156.21,156.2,39.2588]
[1749468934691,3.23316197,156.28,156.22,6.3977]
[1749468934890,5.10925158,156.29,156.2,36.09316197]
[1749468935593,6.3967,156.26,156.22,6.3976]
[1749468935784,0.04707869,156.26,156.22,6.44024541]
[1749468935984,6.397,156.25,156.22,6.44024541]
[1749468937389,0.04707869,156.26,156.22,0.04264541]
[1749468938086,6.3971,156.25,156.22,6.44034541]
[1749468940494,0.04707869,156.26,156.23,6.3974]
[1749468940798,0.04707869,156.26,156.22,0.04264541]
[1749468940998,6.3967,156.25,156.22,6.44034541]
[1749468941997,6.3967,156.25,156.23,6.3975]
[1749468943101,0.04707869,156.26,156.23,3.23316197]
[1749468943295,0.04707869,156.26,156.24,32.84]
[1749468943496,0.04707869,156.26,156.24,39.2369]
[1749468944101,0.04707869,156.26,156.25,6.3967]
[1749468944402,0.04707869,156.26,156.24,32.84]
[1749468945393,5.91312767,156.33,156.24,32.84]
[1749468945599,9.49020103,156.32,156.25,3.23316197]
[1749468945901,5.14605222,156.32,156.25,9.62956197]
[1749468946603,6.3955,156.28,156.27,0.04176039]
[1749468946798,0.04519596,156.3,156.27,0.04176039]
[1749468947200,6.3955,156.29,156.27,0.04176039]
[1749468948101,0.04519596,156.3,156.27,0.04176039]
[1749468948503,6.3954,156.29,156.27,0.04176039]
[1749468948706,0.04519596,156.3,156.27,0.04176039]
[1749468949603,6.3953,156.29,156.27,0.04176039]
[1749468950603,6.3955,156.28,156.27,0.04176039]
[1749468951801,6.3953,156.29,156.27,0.04176039]
[1749468952600,6.3955,156.28,156.27,0.04176039]
[1749468954707,11.56356874,156.28,156.27,0.04176039]
[1749468955607,5.16806874,156.28,156.27,0.04176039]
[1749468955805,5.16806874,156.29,156.27,0.04176039]
[1749468956005,5.16806874,156.28,156.27,0.04176039]
[1749468956201,5.16806874,156.29,156.27,0.04176039]
[1749468956395,5.16806874,156.28,156.27,0.04176039]
[1749468956600,6.3955,156.28,156.27,0.04176039]
[1749468956904,11.56356874,156.28,156.27,0.04176039]
[1749468957407,0.04519596,156.3,156.27,0.04176039]
[1749468957705,0.04519596,156.3,156.28,32.7]
[1749468957907,0.04519596,156.3,156.29,9.62826197]
[1749468958299,5.17380479,156.33,156.29,3.23316197]
[1749468958502,5.17380479,156.34,156.29,3.23316197]
[1749468958808,5.17380479,156.33,156.29,3.23316197]
[1749468959010,5.17380479,156.34,156.29,9.62816197]
[1749468959210,5.17380479,156.33,156.29,9.62816197]
[1749468959410,0.04427153,156.33,156.3,0.04625641]
[1749468959613,11.61167632,156.33,156.3,0.04625641]
[1749468959906,0.04427153,156.33,156.3,0.04625641]
[1749468960111,5.1199945,156.32,156.3,0.04625641]
[1749468960307,6.3943,156.31,156.3,0.04625641]
[1749468960506,5.1199945,156.32,156.3,0.04625641]
[1749468960906,11.5138945,156.32,156.3,0.04625641]
[1749468961103,5.1199945,156.32,156.3,0.04625641]
[1749468961409,0.04427153,156.33,156.3,0.04625641]
[1749468961599,6.3939,156.32,156.3,0.04625641]
[1749468961805,0.04427153,156.33,156.3,0.04625641]
[1749468962413,6.43797153,156.33,156.3,0.04625641]
[1749468962605,0.04427153,156.33,156.3,0.04625641]
[1749468963006,6.43777153,156.33,156.3,0.04625641]
[1749468964008,6.43777153,156.33,156.3,6.44085641]
[1749468964211,0.04427153,156.33,156.3,0.04625641]
[1749468964609,5.18000756,156.33,156.3,0.04625641]
[1749468964813,6.3941,156.32,156.3,0.04625641]
[1749468965513,6.43787153,156.33,156.3,0.04625641]
[1749468965914,6.43787153,156.33,156.3,6.44065641]
[1749468966512,6.3939,156.32,156.3,0.04625641]
[1749468966713,0.04427153,156.33,156.31,8.3]
[1749468967213,0.04427153,156.33,156.31,14.6943]
[1749468967813,6.43777153,156.33,156.31,14.6943]
[1749468968212,2.54455928,156.35,156.32,35.93316197]
[1749468968414,2.54455928,156.35,156.34,3.23316197]
[1749468968615,2.54455928,156.35,156.34,9.62626197]
[1749468969618,2.54455928,156.35,156.34,3.23316197]
[1749468969809,2.54455928,156.35,156.33,6.3933]
[1749468970014,2.54455928,156.35,156.33,3.23316197]
[1749468970614,2.54455928,156.35,156.33,9.62636197]
[1749468970813,2.54455928,156.35,156.33,3.23316197]
[1749468971018,2.54455928,156.35,156.33,9.62636197]
[1749468971914,8.93725928,156.35,156.33,9.62636197]
[1749468972114,2.54455928,156.35,156.33,9.62636197]
[1749468972317,2.54455928,156.35,156.34,6.3931]
[1749468974615,5.94150646,156.45,156.34,6.4]
[1749468974919,5.13716772,156.46,156.42,3.23316197]
[1749468975112,5.13716772,156.46,156.42,35.91316197]
[1749468975316,5.13716772,156.47,156.43,3.23316197]
[1749468975623,6.43191225,156.47,156.43,3.27769694]
[1749468975818,0.04401225,156.47,156.43,3.27769694]
[1749468976320,6.43201225,156.47,156.43,3.27769694]
[1749468976521,0.04401225,156.47,156.43,3.27769694]
[1749468976710,6.389,156.44,156.43,0.04453497]
[1749468977719,39.48,156.44,156.32,368.34]
[1749468978016,3.23316197,156.38,156.33,33.08]
[1749468978217,6.393,156.35,156.33,33.08]
[1749468978417,3.23316197,156.39,156.33,33.08]
[1749468978721,6.3926,156.35,156.34,0.04717129]
[1749468978917,3.23316197,156.38,156.34,0.04717129]
[1749468979322,5.24913314,156.39,156.34,0.04717129]
[1749468979516,6.3926,156.35,156.34,0.04717129]
[1749468981611,6.44012727,156.36,156.34,0.04717129]
[1749468981818,0.04772727,156.36,156.34,0.04717129]
[1749468982016,0.04772727,156.36,156.34,33.12717129]
[1749468982327,33.08,156.44,156.34,38.37630443]
[1749468982518,2.38313059,156.43,156.34,38.32913314]
[1749468982720,6.3905,156.41,156.38,6.3914]
[1749468982915,51.10533314,156.47,156.38,33.08]
[1749468983117,33.08,156.47,156.38,33.08]
[1749468983420,0.04509417,156.44,156.41,0.04656338]
[1749468983821,6.84430125,156.44,156.41,0.04656338]
[1749468984127,6.3898,156.42,156.41,0.04656338]
[1749468984325,13.16393152,156.42,156.41,0.04656338]
[1749468984524,10.80740541,156.42,156.41,0.04656338]
[1749468984724,10.80740554,156.42,156.41,0.04656338]
[1749468984918,6.3898,156.42,156.41,0.04656338]
[1749468988022,0.04509417,156.44,156.41,0.04656338]
[1749468988324,2.2558,156.49,156.41,0.04656338]
[1749468988523,7.50493314,156.49,156.41,0.04656338]
[1749468988830,12.05028532,156.48,156.41,0.04656338]
[1749468989129,6.3898,156.42,156.41,0.04656338]
[1749468990320,0.04472166,156.43,156.41,0.04656338]
[1749468990721,6.3898,156.42,156.41,0.04656338]
[1749468991626,0.04472166,156.43,156.41,0.04656338]
[1749468992419,6.3898,156.42,156.41,0.04656338]
[1749468993122,6.43422166,156.43,156.41,0.04656338]
[1749468993327,0.04472166,156.43,156.41,0.04656338]
[1749468993529,6.43432166,156.43,156.41,0.04656338]
[1749468993722,0.04472166,156.43,156.41,0.04656338]
[1749468995221,6.43432166,156.43,156.41,0.04656338]
[1749468995418,0.04472166,156.43,156.41,0.04656338]
[1749468995829,5.11165022,156.48,156.42,5.24913314]
[1749468996029,5.11165022,156.49,156.43,2.2274]
[1749468996330,11.49885022,156.49,156.45,6.3883]
[1749468996531,6.3872,156.49,156.45,6.3883]
[1749468996733,5.15034455,156.49,156.45,0.04121176]
[1749468996932,6.3876,156.48,156.45,0.04121176]
[1749468997134,0.04083208,156.49,156.45,0.04121176]
[1749468997619,4.51979698,156.49,156.45,0.04121176]
[1749468997819,0.04083208,156.49,156.45,0.04121176]
[1749468998028,5.15058313,156.49,156.45,0.04121176]
[1749468998220,0.04083208,156.49,156.45,0.04121176]
[1749468998420,6.3881,156.46,156.45,0.04121176]
[1749468998625,5.24913314,156.48,156.45,0.04121176]
[1749468998926,6.3876,156.48,156.45,0.04121176]
[1749468999229,5.15728374,156.49,156.45,0.04121176]
[1749468999431,0.04083208,156.49,156.45,0.04121176]
[1749468999633,6.3881,156.46,156.45,0.04121176]
[1749469000834,6.3878,156.47,156.45,0.04121176]
[1749469001028,5.11811662,156.48,156.45,0.04121176]
[1749469001924,6.388,156.47,156.45,0.04121176]
[1749469002725,11.50551662,156.48,156.45,0.04121176]
[1749469002936,5.11811662,156.48,156.45,0.04121176]
[1749469003125,0.04083208,156.49,156.45,0.04121176]
[1749469003329,0.04083208,156.49,156.46,6.3879]
[1749469004032,5.16838424,156.49,156.45,6.42961176]
[1749469004235,4.2911,156.54,156.46,5.24913314]
[1749469004437,6.87266325,156.53,156.46,5.24913314]